bitfinex-derivatives/quotes_ETHF0:USTF0_20251012
["timestamp","ask_amount","ask_price","bid_price","bid_amount"]
[1760287830257,3.2078,4104.8,4103.2,3.2078]
[1760287830457,3.2078,4104.1,4103.3,0.43836]
[1760287830662,3.2078,4105.1,4103.4,3.3883]
[1760287830862,3.2078,4105.1,4103.7,3.2078]
[1760287831066,3.20974528,4105.1,4104.1,0.43827]
[1760287831370,3.2078,4106.7,4105.2,3.3883]
[1760287831672,3.2078,4106.7,4105.8,3.2078]
[1760287831863,3.2078,4107.6,4106.3,3.2078]
[1760287832163,3.2078,4107.0,4105.9,3.3883]
[1760287832361,3.21043307,4107.0,4105.9,3.3883]
[1760287832564,0.00263307,4107.0,4106.0,0.43807]
[1760287832767,0.00263307,4107.0,4105.9,7.03417]
[1760287832961,3.2078,4105.9,4104.1,0.00272588]
[1760287833266,3.2078,4105.9,4102.5,3.2278]
[1760287833267,3.2078,4104.2,4102.5,3.2278]
[1760287833572,3.2078,4104.2,4100.4,7.35109294]
[1760287833573,3.2078,4104.2,4102.3,3.2278]
[1760287833761,3.2078,4103.7,4102.3,3.06565019]
[1760287833957,5.89517939,4104.1,4102.3,3.06565019]
[1760287833958,3.2078,4102.4,4102.3,3.06565019]
[1760287834162,3.20961168,4102.4,4102.3,3.06852966]
[1760287834465,3.20961168,4102.4,4102.3,0.00287947]
[1760287834664,3.20961168,4102.4,4100.4,1.2912]
[1760287834665,6.61068659,4102.4,4100.4,1.2912]
[1760287834869,0.43874,4099.8,4098.4,3.2078]
[1760287835068,3.2078,4100.8,4099.0,3.2078]
[1760287835371,10.96017,4102.9,4098.6,4.499]
[1760287835372,0.43865,4100.6,4098.6,4.499]
[1760287835571,3.2078,4100.5,4099.2,0.24584072]
[1760287835765,3.2078,4100.0,4099.2,0.24087777]
[1760287835967,3.2078,4100.0,4096.8,1.82595]
[1760287835968,0.43885,4098.7,4097.5,3.2078]
[1760287836166,3.2078,4097.7,4096.8,1.3869]
[1760287836470,3.2078,4096.9,4095.5,3.2278]
[1760287836767,3.2078,4096.9,4096.0,3.2278]
[1760287836968,3.2078,4097.4,4096.0,3.2278]
[1760287837169,3.2078,4097.4,4096.4,3.2078]
[1760287837170,0.00294497,4097.4,4096.4,3.2078]
[1760287837467,6.05989294,4100.0,4096.0,0.44197489]
[1760287837468,3.2078,4098.5,4097.6,3.2278]
[1760287837666,3.2078,4099.2,4098.2,0.4389]
[1760287837865,0.43859,4101.2,4098.9,3.2278]
[1760287837866,3.2078,4099.7,4098.9,3.2278]
[1760287838059,3.2078,4100.5,4098.9,3.2278]
[1760287838263,3.2078,4099.7,4098.9,3.2278]
[1760287838465,3.2078,4100.7,4099.2,0.43879]
[1760287838666,3.2078,4101.2,4099.8,3.2078]
[1760287838869,3.2078,4101.2,4100.5,3.2278]
[1760287839472,3.2078,4101.9,4101.1,3.2278]
[1760287839767,3.2078,4102.4,4102.3,3.2278]
[1760287840163,3.2078,4103.4,4102.3,6.4356]
[1760287840364,3.2078,4103.4,4102.2,1.3869]
[1760287840365,3.2078,4105.1,4103.4,3.2278]
[1760287840669,0.00178271,4105.1,4104.4,3.2278]
[1760287840870,0.00178271,4105.1,4104.5,3.2078]
[1760287841071,0.00178271,4105.1,4105.0,0.43817]
[1760287841371,0.00178271,4105.1,4105.0,6.4356]
[1760287841570,0.00178271,4105.1,4104.3,0.43825]
[1760287841776,3.2078,4104.8,4104.4,0.43823]
[1760287841968,3.2078,4104.8,4104.5,3.2278]
[1760287842166,3.2078,4104.8,4104.0,1.3869]
[1760287842370,0.00178271,4105.1,4104.3,3.2078]
[1760287842670,3.2078,4106.0,4105.0,3.2278]
[1760287843469,3.2078,4106.0,4104.0,1.3869]
[1760287843470,0.257,4105.9,4104.0,1.3869]
[1760287843774,3.2078,4104.1,4103.4,3.21063357]
[1760287844068,3.2078,4104.2,4103.5,3.3152]
[1760287844369,3.2078,4103.6,4103.5,3.3152]
[1760287844769,3.2078,4104.9,4103.8,0.43829]
[1760287844968,3.2078,4104.9,4104.6,3.3152]
[1760287845275,0.00222129,4105.9,4104.1,3.3152]
[1760287845774,0.00222129,4105.9,4105.8,4.5989]
[1760287845973,0.00222129,4105.9,4105.8,1.2837]
[1760287846268,0.00222129,4105.9,4104.9,3.3152]
[1760287846469,3.2078,4105.1,4104.9,3.75339]
[1760287846662,3.2078,4105.1,4105.0,3.3152]
[1760287846962,3.2078,4105.1,4103.4,0.00283357]
[1760287847166,3.2078,4104.4,4103.4,0.00283357]
[1760287847682,12.04796,4105.7,4100.0,2.10404038]
[1760287847683,3.2078,4103.7,4101.7,3.3152]
[1760287847969,3.2078,4102.0,4101.3,3.3152]
[1760287848570,3.21079086,4102.0,4101.4,3.3152]
[1760287848974,3.2078,4103.3,4101.7,3.3152]
[1760287849271,3.2078,4102.3,4101.3,0.00198617]
[1760287849974,3.2078,4101.8,4101.3,0.00198617]
[1760287850865,0.00215068,4102.3,4102.2,3.75367]
[1760287851073,0.00215068,4102.3,4101.3,0.00198617]
[1760287851267,0.00215068,4102.3,4102.2,3.3152]
[1760287851467,0.00215068,4102.3,4101.3,3.31718617]
[1760287851668,3.2078,4101.6,4101.3,0.00198617]
[1760287851875,3.64635,4101.6,4099.5,3.3152]
[1760287852079,5.90427535,4101.5,4099.7,3.3152]
[1760287852269,2.73182214,4101.5,4100.3,3.3152]
[1760287852465,3.2078,4101.6,4100.9,0.43861]
[1760287852771,3.2088,4101.0,4100.9,0.00242491]
[1760287853166,3.2078,4101.1,4100.9,0.00242491]
[1760287853367,0.00215068,4102.3,4100.9,0.00242491]
[1760287853368,3.2078,4101.6,4100.9,0.00242491]
[1760287853569,3.2078,4101.6,4101.4,0.43856]
[1760287853873,3.2078,4101.6,4101.5,3.3152]
[1760287854068,0.00215068,4102.3,4102.2,3.3152]
[1760287854469,0.00215068,4102.3,4101.4,3.2078]
[1760287854770,3.2078,4101.8,4100.9,0.00242491]
[1760287855181,3.2078,4101.2,4100.9,0.00242491]
[1760287855377,3.2078,4101.9,4101.1,3.3152]
[1760287855674,3.2078,4101.9,4101.7,0.43852]
[1760287855973,0.00215068,4102.3,4101.5,3.2078]
[1760287856175,0.00215068,4102.3,4101.7,3.2078]
[1760287856577,0.00215068,4102.3,4101.7,6.523]
[1760287856774,3.2078,4104.1,4103.5,0.43834]
[1760287856974,3.2078,4103.6,4102.5,3.2078]
[1760287857274,3.2088,4104.0,4101.5,3.3152]
[1760287857275,3.2078,4103.0,4101.5,3.3152]
[1760287857471,3.2078,4103.0,4101.6,0.43853]
[1760287857674,3.2078,4102.6,4102.2,0.43847]
[1760287857871,3.2088,4102.5,4100.9,0.00242491]
[1760287858073,3.2078,4101.0,4100.9,0.00242491]
[1760287858376,3.2078,4101.1,4101.0,3.3152]
[1760287858574,3.2078,4102.1,4101.0,3.3152]
[1760287858778,3.2078,4102.1,4101.0,6.523]
[1760287858975,3.2078,4102.1,4101.0,3.3152]
[1760287859279,0.00192886,4102.6,4102.5,0.43844]
[1760287859971,0.00192886,4102.6,4102.4,0.43845]
[1760287860281,0.00192886,4102.6,4101.6,3.3152]
[1760287860577,3.2078,4102.0,4100.9,0.00242491]
[1760287860766,3.2078,4101.0,4099.2,3.2078]
[1760287861078,3.2078,4101.0,4100.1,3.3152]
[1760287861373,3.2078,4100.5,4099.2,3.2078]
[1760287861573,3.2078,4099.9,4099.2,3.2078]
[1760287861770,3.2078,4100.7,4099.9,1.09681]
[1760287861966,3.2078,4102.4,4100.6,3.2078]
[1760287862169,9.06093917,4100.6,4099.2,0.00308902]
[1760287862485,1.09637,4101.6,4096.9,3.3152]
[1760287862486,3.2088,4099.2,4096.9,3.3152]
[1760287862670,3.2078,4097.7,4096.9,3.3152]
[1760287862976,3.2078,4097.6,4095.9,3.2064]
[1760287863170,3.2078,4098.5,4097.1,3.2064]
[1760287863473,3.2078,4098.5,4098.3,3.2078]
[1760287863474,0.00308501,4098.5,4098.3,3.2078]
[1760287863680,0.00308501,4098.5,4098.3,3.64669]
[1760287863875,0.00308501,4098.5,4097.8,3.2078]
[1760287864071,0.00308501,4098.5,4098.4,3.2064]
[1760287864381,0.00308501,4098.5,4097.8,3.2078]
[1760287864583,0.00308501,4098.5,4098.4,3.2064]
[1760287864769,3.3029,4100.0,4098.4,3.2064]
[1760287864770,3.2078,4101.2,4099.7,3.2064]
[1760287865278,3.3029,4101.7,4100.3,0.43867]
[1760287865479,3.3029,4101.7,4100.2,3.2078]
[1760287865678,3.3054779,4101.7,4100.2,3.64890335]
[1760287865883,3.2078,4101.2,4100.2,0.00241335]
[1760287866180,3.3029,4100.6,4100.2,0.00241335]
[1760287866477,3.16891688,4100.5,4098.9,3.2064]
[1760287866675,3.2078,4099.1,4098.1,3.2064]
[1760287866979,3.2078,4098.6,4097.3,3.2064]
[1760287867181,3.2078,4098.0,4096.4,3.2064]
[1760287867476,3.2078,4097.3,4096.4,3.20812096]
[1760287867680,6.5107,4096.8,4096.4,0.00172096]
[1760287867880,3.2078,4097.7,4096.4,0.44082096]
[1760287868180,0.00236238,4098.0,4096.9,0.43904]
[1760287868373,0.00236238,4098.0,4096.4,0.00172096]
[1760287868374,0.00236238,4098.0,4097.6,3.2078]
[1760287868574,0.00236238,4098.0,4097.1,3.2078]
[1760287868783,0.00236238,4098.0,4096.9,0.43904]
[1760287868972,3.30526238,4098.0,4096.8,3.2078]
[1760287869176,3.30526238,4098.0,4094.7,2.10404038]
[1760287869177,10.97538,4097.3,4094.7,2.10404038]
[1760287869477,3.2078,4097.7,4092.8,1.36373315]
[1760287869478,3.2078,4094.8,4093.8,3.2078]
[1760287869780,3.2078,4095.5,4094.7,3.2078]
[1760287869971,3.2078,4095.5,4094.5,3.2064]
[1760287870172,3.2078,4095.0,4093.0,3.2078]
[1760287870374,0.43946,4093.1,4092.8,0.02443315]
[1760287870574,10.98221,4094.7,4091.1,3.2064]
[1760287870575,3.2078,4093.0,4091.1,3.2064]
[1760287870779,1.6143,4092.9,4091.1,3.2064]
[1760287870986,3.2078,4092.1,4091.1,3.2064]
[1760287871278,3.21043036,4092.1,4091.1,0.00312257]
[1760287871476,0.00263036,4092.1,4091.2,3.2078]
[1760287871671,0.00263036,4092.1,4091.1,0.00312257]
[1760287871875,3.2078,4091.9,4091.1,0.00312257]
[1760287872185,3.2078,4091.9,4086.3,5.60768819]
[1760287872186,3.2078,4089.6,4086.3,5.60768819]
[1760287872483,1.09938,4090.4,4083.4,1.3393]
[1760287872484,3.2078,4087.3,4085.0,3.2078]
[1760287872677,3.2078,4087.4,4085.4,3.2078]
[1760287872879,3.2078,4087.4,4086.0,3.2078]
[1760287873078,10.234,4089.7,4085.6,3.2064]
[1760287873079,3.2078,4086.4,4085.6,3.2064]
[1760287873278,10.234,4089.7,4086.0,0.00187788]
[1760287873279,3.2078,4087.2,4086.0,0.00187788]
[1760287873579,3.2078,4086.4,4086.0,0.00187788]
[1760287873784,3.2078,4086.9,4086.1,3.2064]
[1760287873987,0.00241965,4087.4,4086.8,3.2064]
[1760287874183,0.00241965,4087.4,4086.3,3.2078]
[1760287874376,3.2078,4086.7,4086.0,0.00187788]
[1760287874677,0.00241965,4087.4,4087.0,3.2064]
[1760287874883,0.00241965,4087.4,4087.3,6.4142]
[1760287875074,0.8316,4087.2,4086.0,0.00187788]
[1760287875273,3.2078,4086.1,4083.5,3.2078]
[1760287875477,2.65544109,4087.4,4079.3,1.3393]
[1760287875478,3.2078,4084.8,4083.8,3.2078]
[1760287875680,3.2078,4085.3,4083.4,7.7535]
[1760287875876,3.2078,4084.8,4082.3,3.2078]
[1760287876081,5.5392554,4086.5,4081.0,10.243]
[1760287876082,3.2078,4084.3,4082.9,3.2078]
[1760287876280,3.2078,4083.8,4082.9,0.00277282]
[1760287876481,0.00273186,4084.3,4083.2,3.2078]
[1760287876679,0.00273186,4084.3,4084.2,3.2078]
[1760287876873,3.2078,4086.5,4084.3,3.2064]
[1760287877080,3.2078,4087.9,4086.3,3.2078]
[1760287877276,3.2078,4087.9,4084.2,1.3393]
[1760287877480,3.2078,4086.0,4084.5,3.2078]
[1760287877679,3.2078,4085.2,4084.5,3.2064]
[1760287877879,0.0019546,4085.2,4084.9,3.2064]
[1760287878080,0.0019546,4085.2,4084.5,0.00251059]
[1760287878281,3.2078,4086.4,4085.1,3.2078]
[1760287878484,3.2078,4085.9,4084.8,3.2078]
[1760287878683,3.2078,4085.6,4084.7,3.2078]
[1760287878887,2.74525974,4089.2,4084.6,3.2064]
[1760287878888,6.40410002,4085.8,4084.6,3.2064]
[1760287879090,10.99751,4089.0,4084.5,0.00251059]
[1760287879091,3.2078,4086.7,4085.4,3.2078]
[1760287879291,3.2078,4087.8,4086.7,3.2064]
[1760287879482,2.69462034,4087.8,4087.2,3.2064]
[1760287879681,0.00272712,4087.8,4087.7,3.2064]
[1760287879883,3.2078,4089.2,4087.7,3.20899655]
[1760287880082,3.2078,4089.4,4087.7,6.41679655]
[1760287880388,3.2078,4088.0,4086.9,4.5457]
[1760287880689,3.2078,4087.0,4086.0,3.2064]
[1760287880889,3.2078,4087.4,4085.8,3.2078]
[1760287881091,3.2078,4086.7,4085.9,3.2064]
[1760287881278,0.00179719,4086.7,4086.6,3.2064]
[1760287881482,1.09907,4091.5,4086.6,3.2064]
[1760287881483,3.2078,4088.3,4086.6,3.2064]
[1760287881782,3.2078,4088.3,4086.8,3.2078]
[1760287881980,5.83083081,4089.0,4087.3,6.4142]
[1760287882186,3.2078,4089.0,4088.3,3.2064]
[1760287882383,3.21046337,4089.0,4088.3,3.2064]
[1760287882789,3.2078,4090.9,4088.6,3.2064]
[1760287883088,3.2078,4090.3,4089.1,3.2064]
[1760287883288,3.18694618,4090.8,4090.2,3.2078]
[1760287883487,3.2078,4092.5,4090.8,3.2064]
[1760287883688,6.2333,4093.6,4091.6,3.2078]
[1760287883994,3.21015624,4093.6,4091.7,3.2064]
[1760287884291,0.00235624,4093.6,4093.5,3.2064]
[1760287884879,3.21015624,4093.6,4093.5,3.2064]
[1760287885180,0.00235624,4093.6,4093.5,3.2064]
[1760287885487,3.2078,4095.5,4093.6,1.0985]
[1760287885684,3.2078,4095.5,4094.2,3.2078]
[1760287885893,3.2078,4096.6,4095.4,3.2064]
[1760287886390,0.00243894,4096.6,4096.5,3.2064]
[1760287886784,0.22,4097.3,4095.8,3.2078]
[1760287886988,0.22,4097.3,4097.0,0.43903]
[1760287887185,3.2078,4098.2,4097.2,3.2078]
[1760287887385,3.2078,4097.7,4097.1,0.43902]
[1760287887584,3.2078,4098.4,4098.2,0.4389]
[1760287887783,3.2078,4098.4,4096.4,1.3393]
[1760287887784,3.2078,4099.0,4098.3,3.2064]
[1760287887986,3.2078,4099.5,4098.3,3.2064]
[1760287888185,3.2078,4099.5,4099.3,0.43878]
[1760287888391,3.2078,4099.5,4099.4,3.2064]
[1760287888594,3.2078,4100.7,4099.4,3.2064]
[1760287888891,3.20998265,4100.7,4099.6,3.2078]
[1760287889091,3.20998265,4100.7,4099.5,3.2078]
[1760287889282,3.20998265,4100.7,4099.4,3.20842361]
[1760287889490,3.2078,4100.1,4099.4,3.20842361]
[1760287889691,3.20998265,4100.7,4099.5,3.2078]
[1760287889891,3.3029,4101.5,4099.4,3.20842361]
[1760287889892,3.2078,4101.3,4099.9,3.2078]
[1760287890092,3.2078,4100.0,4099.4,0.00202361]
[1760287890295,3.2078,4100.9,4099.4,6.41622361]
[1760287890494,3.2078,4100.9,4100.0,3.2078]
[1760287890692,3.3029,4101.5,4099.4,3.20842361]
[1760287890693,3.2078,4100.4,4099.4,3.20842361]
[1760287890894,0.00215197,4100.4,4100.0,0.43871]
[1760287891095,5.94219117,4100.3,4099.4,0.00202361]
[1760287891289,3.3029,4099.4,4096.3,3.2064]
[1760287891495,3.2078,4097.6,4096.6,0.43907]
[1760287891695,3.2078,4097.6,4096.3,3.2064]
[1760287891898,3.2078,4098.1,4097.0,3.2078]
[1760287892197,3.3029,4099.2,4097.0,0.0025051]
[1760287892198,3.2078,4097.9,4097.0,0.0025051]
[1760287893203,1.09647,4101.2,4097.0,0.0025051]
[1760287893204,3.2078,4097.3,4097.0,0.0025051]
[1760287893496,3.2078,4097.3,4097.1,3.3302]
[1760287893497,0.00249615,4097.3,4097.1,3.3302]
[1760287893700,3.2078,4097.2,4097.1,3.3302]
[1760287894002,3.2078,4098.2,4097.2,3.3302]
[1760287894196,3.2078,4098.2,4098.0,0.43892]
[1760287894498,3.2078,4098.7,4098.1,3.76911]
[1760287894706,3.2078,4098.7,4098.6,3.3302]
[1760287895104,3.21046051,4098.7,4097.6,3.3302]
[1760287895401,3.21046051,4098.7,4097.6,6.538]
[1760287895599,3.21046051,4098.7,4098.2,3.2078]
[1760287895800,3.2078,4100.2,4098.3,3.3302]
[1760287896100,3.2078,4100.2,4099.8,0.43872]
[1760287896296,0.22,4103.3,4099.2,3.3302]
[1760287896297,3.2078,4100.8,4099.5,3.2078]
[1760287896601,3.2078,4100.8,4099.2,3.3302]
[1760287896602,3.2078,4100.8,4099.7,3.2078]
[1760287896806,3.20958151,4100.8,4099.7,3.2078]
[1760287898194,0.00178151,4100.8,4100.7,3.76884]
[1760287898401,0.00178151,4100.8,4100.7,3.77121313]
[1760287898705,0.22,4103.3,4100.7,3.77121313]
[1760287898706,3.2078,4102.7,4102.3,0.43847]
[1760287898905,3.2078,4102.7,4102.5,0.43844]
[1760287899102,3.2078,4102.7,4101.7,3.2078]
[1760287899303,3.2078,4102.2,4101.1,3.2078]
[1760287899498,3.2078,4101.7,4100.7,3.33257313]
[1760287899701,0.00276857,4102.2,4101.3,3.64636]
[1760287899904,0.00276857,4102.2,4101.3,3.2078]
[1760287900099,0.00276857,4102.2,4101.7,0.43852]
[1760287900299,0.00276857,4102.2,4101.8,0.43851]
[1760287900495,0.00276857,4102.2,4101.3,0.43856]
[1760287900700,0.00276857,4102.2,4101.3,0.43857]
[1760287900998,3.2078,4101.8,4100.7,0.00237313]
[1760287901302,3.2078,4101.8,4100.9,0.43862]
[1760287901605,3.2078,4101.0,4100.7,0.00237313]
[1760287902403,3.2078,4101.5,4100.7,0.00237313]
[1760287902597,3.2078,4100.8,4100.7,0.00237313]
[1760287903103,3.2078,4101.4,4101.0,0.4386]
[1760287903299,3.2078,4101.4,4100.7,3.21017313]
[1760287903499,3.2078,4101.4,4101.2,0.43858]
[1760287903698,3.2078,4101.4,4100.7,3.21017313]
[1760287903901,3.2078,4101.4,4101.2,0.43858]
[1760287904097,3.2078,4102.0,4101.9,0.4385]
[1760287904302,0.00276857,4102.2,4101.4,3.3302]
[1760287904501,0.00276857,4102.2,4102.1,3.3302]
[1760287904701,0.00276857,4102.2,4102.1,6.538]
[1760287905607,3.2078,4104.0,4102.1,3.3302]
[1760287905906,3.4278,4103.3,4102.4,3.2078]
[1760287906106,3.4278,4103.3,4102.3,3.2078]
[1760287906306,3.4278,4103.3,4102.1,3.3302]
[1760287906508,3.2078,4102.8,4102.1,3.3302]
[1760287906703,3.2078,4102.3,4101.6,3.2078]
[1760287906904,3.2078,4101.7,4101.2,3.4391]
[1760287907107,2.70477065,4102.7,4101.7,1.09633]
[1760287907306,3.42985318,4103.3,4102.6,0.43843]
[1760287907719,3.2078,4102.8,4102.6,0.43843]
[1760287907903,3.2078,4102.8,4102.4,0.43845]
[1760287908109,3.2078,4102.8,4102.1,3.4391]
[1760287908110,3.2078,4102.8,4102.2,0.43847]
[1760287908415,3.2078,4102.3,4101.2,3.4391]
[1760287908617,3.2078,4101.5,4101.3,0.43857]
[1760287908813,3.2078,4101.5,4100.6,1.09662]
[1760287908814,3.2078,4101.8,4100.7,3.44147313]
[1760287909006,3.2078,4101.8,4101.3,0.43856]
[1760287909312,3.2078,4102.5,4101.7,6.6469]
[1760287909613,3.2078,4103.0,4102.2,3.2078]
[1760287909814,0.22205318,4103.3,4101.8,1.09631]
[1760287909815,3.2078,4103.1,4103.0,0.43839]
[1760287910014,0.22205318,4103.3,4103.2,3.87747]
[1760287910219,3.2078,4104.4,4103.2,3.4391]
[1760287910409,3.1721,4105.7,4104.0,3.2078]
[1760287910607,3.2078,4105.3,4104.0,3.2078]
[1760287910810,3.2078,4105.3,4104.7,0.43821]
[1760287911109,3.2078,4105.3,4103.5,4.30364]
[1760287911307,3.2078,4104.8,4103.7,3.2078]
[1760287911505,3.2078,4104.8,4103.6,4.3036]
[1760287911704,3.2078,4104.8,4104.3,3.4391]
[1760287912312,3.2078,4104.8,4103.5,0.00207706]
[1760287912516,3.2078,4103.8,4103.5,0.00207706]
[1760287913016,3.2078,4103.8,4102.2,3.2078]
[1760287913017,3.1721,4103.7,4102.2,3.2078]
[1760287913208,0.00300759,4105.3,4100.5,4.76672732]
[1760287913209,3.2078,4102.9,4102.5,0.43844]
[1760287913411,3.2078,4102.9,4101.9,3.2078]
[1760287913712,3.2078,4102.9,4102.3,0.43846]
[1760287914013,5.75277459,4104.5,4102.3,0.43846]
[1760287914014,3.2078,4104.0,4103.3,0.43835]
[1760287914209,3.2078,4103.5,4102.5,0.43844]
[1760287914411,3.2078,4104.0,4102.5,3.2078]
[1760287914612,3.2078,4104.0,4103.3,0.43835]
[1760287914910,3.2078,4104.0,4103.0,3.2078]
[1760287915115,3.2078,4104.0,4103.8,0.4383]
[1760287915318,3.2078,4104.0,4102.3,0.00216542]
[1760287915612,3.2078,4103.1,4102.3,0.00216542]
[1760287915822,3.2078,4103.1,4102.3,0.44062542]
[1760287916414,3.2078,4102.4,4102.3,0.00216542]
[1760287916615,3.2078,4103.7,4102.3,3.44126542]
[1760287916812,3.2078,4103.7,4103.0,0.43838]
[1760287917114,3.2078,4103.1,4102.3,0.00216542]
[1760287917512,3.2078,4103.1,4102.3,3.20996542]
[1760287917719,0.00232942,4103.1,4103.0,4.2349]
[1760287918022,3.1721,4103.0,4102.3,0.00216542]
[1760287918317,3.1721,4103.0,4102.4,0.43845]
[1760287918520,3.1721,4103.0,4102.3,0.00216542]
[1760287919014,3.1721,4102.7,4102.3,0.00216542]
[1760287919219,3.2078,4102.8,4102.3,0.00216542]
[1760287919407,3.1721,4102.4,4100.4,3.2078]
[1760287919716,3.2078,4101.5,4100.7,0.43863]
[1760287919920,3.1721,4101.9,4101.2,3.2078]
[1760287920113,3.1721,4101.9,4100.7,3.2078]
[1760287920415,3.1721,4101.4,4100.7,0.00216476]
[1760287920610,3.1721,4100.8,4100.1,3.2078]
[1760287920810,3.1721,4100.8,4100.2,0.43868]
[1760287921011,3.2078,4100.7,4100.0,0.4387]
[1760287921309,3.2078,4100.7,4099.0,1.09705]
[1760287921310,3.1721,4101.9,4100.2,3.2078]
[1760287921510,3.1721,4101.9,4101.2,0.43858]
[1760287921710,3.1721,4101.9,4101.1,3.2078]
[1760287922120,3.2078,4102.6,4101.6,3.2078]
[1760287922514,3.1721,4102.9,4100.2,2.19643965]
[1760287922515,3.235,4103.0,4102.1,3.2078]
[1760287922713,3.235,4102.2,4100.9,3.2078]
[1760287923014,0.00232942,4103.1,4101.5,3.2078]
[1760287923015,1.2971,4102.0,4101.5,3.2078]
[1760287923214,3.235,4101.9,4100.9,3.2078]
[1760287923419,3.235,4101.9,4100.2,1.09973965]
[1760287923420,3.235,4101.9,4100.4,3.2078]
[1760287923717,3.2078,4101.6,4100.4,3.2078]
[1760287924025,5.81176398,4101.9,4100.2,0.00301965]
[1760287924026,3.2078,4101.0,4100.2,0.00301965]
[1760287924322,2.64373069,4101.5,4100.2,0.00301965]
[1760287924323,3.235,4100.4,4100.2,0.00301965]
[1760287924815,3.2078,4101.0,4100.2,0.00301965]
[1760287925017,3.235,4101.6,4100.6,3.2078]
[1760287925520,3.2078,4101.7,4101.4,0.43856]
[1760287925822,3.2078,4102.2,4101.5,1.09638]
[1760287926116,3.21012942,4103.1,4102.3,0.43846]
[1760287926321,3.21012942,4103.1,4102.9,0.43839]
[1760287926519,3.21012942,4103.1,4102.9,0.4384]
[1760287926718,3.235,4103.0,4101.6,0.43854]
[1760287926915,3.2078,4102.6,4101.8,0.43851]
[1760287927109,3.2078,4102.6,4100.9,3.2078]
[1760287927312,5.93319882,4102.5,4101.4,3.2078]
[1760287927509,3.235,4102.4,4102.1,0.43848]
[1760287927708,3.21012942,4103.1,4102.5,0.43844]
[1760287927921,3.235,4103.0,4101.5,3.2078]
[1760287928113,3.2078,4102.6,4101.6,0.43853]
[1760287928316,3.235,4102.5,4101.5,3.2078]
[1760287928515,3.235,4102.5,4101.7,0.43852]
[1760287928712,3.235,4101.9,4100.4,3.2078]
[1760287928916,3.2078,4101.5,4100.6,0.43864]
[1760287929217,3.235,4101.9,4101.0,3.2078]
[1760287929423,3.2078,4101.6,4101.0,3.2078]
[1760287930019,1.2971,4102.0,4101.8,0.43852]
[1760287930318,3.235,4102.5,4101.2,1.09645]
[1760287930523,3.235,4102.5,4101.1,3.2078]
[1760287930820,3.235,4102.5,4102.3,0.43846]
[1760287931014,3.2078,4102.6,4101.6,3.2078]
[1760287931319,3.21012942,4103.1,4101.6,3.2078]
[1760287931520,3.21012942,4103.1,4101.1,3.2078]
[1760287931521,3.2078,4102.5,4101.1,3.2078]
[1760287931714,3.2078,4102.0,4101.1,3.2078]
[1760287932022,3.235,4101.9,4101.1,3.64639]
[1760287932211,3.235,4101.9,4100.2,1.09973965]
[1760287932212,3.2078,4102.5,4101.3,3.2078]
[1760287932418,3.235,4102.7,4101.9,1.09628]
[1760287932822,3.235,4102.7,4102.5,0.43844]
[1760287933016,4.5321,4102.8,4101.3,3.2078]
[1760287933212,3.235,4102.0,4101.3,0.43857]
[1760287933419,3.235,4101.5,4100.9,0.43861]
[1760287933617,4.5321,4101.5,4101.3,0.43857]
[1760287933815,1.2971,4102.8,4101.6,0.43854]
[1760287933816,2.79195706,4102.0,4101.6,0.43854]
[1760287934112,9.23346377,4102.7,4101.6,3.2078]
[1760287934312,9.23346377,4102.7,4101.3,1.09644]
[1760287934313,3.235,4102.1,4101.3,1.09644]
[1760287934524,1.2971,4102.8,4102.6,0.43843]
[1760287934725,4.5321,4102.8,4102.6,0.43843]
[1760287934912,4.5321,4102.8,4102.2,3.2078]
[1760287935111,4.5321,4102.8,4101.2,2.10000961]
[1760287935112,2.76827422,4102.7,4101.8,0.43851]
[1760287935316,3.2078,4102.2,4101.8,0.43851]
[1760287935517,3.2398032,4102.7,4101.5,3.2078]
[1760287935721,3.235,4102.7,4102.4,0.43845]
[1760287935925,4.5321,4102.8,4102.2,0.43847]
[1760287936116,3.2078,4102.7,4102.0,0.4385]
[1760287936313,3.2078,4102.2,4100.9,3.19653961]
[1760287936514,3.2078,4102.2,4101.1,1.09649]
[1760287936716,3.2078,4102.2,4101.4,3.2078]
[1760287937020,3.235,4102.1,4102.0,0.43849]
[1760287937220,3.235,4102.7,4101.0,3.2078]
[1760287937424,1.2971,4102.8,4100.2,3.21081965]
[1760287937425,3.235,4101.5,4100.2,3.21081965]
[1760287937619,3.2078,4101.1,4100.2,3.21081965]
[1760287937818,3.2078,4101.1,4100.5,0.43865]
[1760287938022,3.235,4101.5,4100.2,3.21081965]
[1760287938322,3.235,4101.5,4100.7,3.2078]
[1760287938527,4.5321,4101.6,4100.8,1.09657]
[1760287938714,1.2971,4101.6,4101.4,0.43856]
[1760287939023,3.235,4101.5,4101.4,0.43856]
[1760287939425,1.2971,4101.6,4101.4,0.43855]
[1760287939623,3.235,4101.5,4101.2,0.43858]
[1760287939821,3.235,4101.5,4100.3,1.0967]
[1760287940120,3.2078,4101.2,4100.2,3.21081965]
[1760287940316,3.235,4100.6,4100.2,3.21081965]
[1760287940515,3.2078,4100.7,4100.2,3.21081965]
[1760287940719,3.2078,4101.3,4101.0,0.4386]
[1760287941020,3.235,4101.2,4101.1,0.43859]
[1760287941827,1.2971,4101.6,4101.5,0.43855]
[1760287942022,1.2971,4101.6,4101.1,0.43859]
[1760287942023,3.2078,4101.8,4101.7,0.43853]
[1760287942325,3.23732942,4103.1,4103.0,0.43839]
[1760287942525,0.00232942,4103.1,4103.0,0.43839]
[1760287942717,4.5652,4104.0,4103.9,0.43829]
[1760287942917,4.5652,4104.0,4103.7,1.73204134]
[1760287943114,3.235,4104.7,4104.4,0.43823]
[1760287943325,4.5652,4104.8,4104.7,0.43821]